Cogmind - Beta 15 @@@ ROGUE MODE // 2025.10.12 @ 11:04:08 Player: microsand Result: Destroyed by YI-UF0 with YI-UF0's Doublenader Performance ------------- Evolutions (0) 0 Regions Visited (2) 400 Robots Destroyed (14) 70 Value Destroyed (352) 352 Prototype IDs (1) 20 Alien Tech Used (0) 0 Bonus (0) 0 TOTAL SCORE: 842 Bonus ------- None Cogmind --------- Core Integrity 0/250 Matter 290/300 Energy 240/250 System Corruption 0% Temperature Cool (30) Movement Treading (160) Location -10/Mines Parts ------- > --- POWER (1) -------- Ion Engine > --- PROPULSION (2) --- Light Treads > --- UTILITY (2) ------ Small Storage Unit Experimental Sensor Array > --- WEAPON (2) ------- Medium Laser Grenade Launcher > --- INVENTORY (8) ---- Flight Unit Signal Interpreter Seismic Detector ECM Suite Datajack Datajack Mining Laser Peak State ------------ > --- POWER ------------ Ion Engine > --- PROPULSION ------- Light Treads > --- UTILITY ---------- Small Storage Unit Experimental Sensor Array > --- WEAPON ----------- Medium Laser Light Assault Rifle > --- INVENTORY -------- Flight Unit Signal Interpreter Seismic Detector Grenade Launcher Datajack Mining Laser [Rating: 14] Favorites ----------- Power Ion Engine Engine Ion Engine Propulsion Aluminum Leg Treads Light Treads Leg Aluminum Leg Flight Unit Flight Unit Utility Small Storage Unit Device Seismic Detector Storage Small Storage Unit Weapon Light Assault Rifle Energy Gun Medium Laser Energy Cannon Beam Cannon Ballistic Gun Light Assault Rifle Launcher Grenade Launcher Build | -11 -10 -10 ------- Run | Yrd Mat Min Slots Evolved . | . . . Power . | . . . Propulsion . | . . . Utility . | . . . Weapon . | . . . Parts Attached 14 | 5 4 5 Power 2 | 1 . 1 Engine 2 | 1 . 1 Core . | . . . Reactor . | . . . Propulsion 5 | 2 1 2 Treads 1 | . . 1 Leg 3 | 2 1 . Wheel . | . . . Hover . | . . . Flight 1 | . . 1 Utility 3 | . 2 1 Device 2 | . 1 1 Storage 1 | . 1 . Processor . | . . . Hackware . | . . . Protection . | . . . Artifact . | . . . Weapon 4 | 2 1 1 Energy Gun 1 | 1 . . Energy Cannon 1 | . 1 . Ballistic Gun 1 | 1 . . Ballistic Cannon . | . . . Launcher 1 | . . 1 Special Weapon . | . . . Impact Weapon . | . . . Slashing Weapon . | . . . Piercing Weapon . | . . . Special Melee Weapon . | . . . Unidentified Prototypes 1 | . . 1 Parts Lost 5 | . 2 3 Power 1 | . 1 . Propulsion 2 | . 1 1 Utility . | . . . Weapon 2 | . . 2 Highest Loss Streak 2 | . 1 2 To Critical Strikes . | . . . Average Backups 5 | 2 3 7 Power 1 | . 1 1 Propulsion . | . . . Utility 1 | . . 1 Weapon 2 | . 2 2 Tool/Special . | . . . Unused Backups 7 | . . 7 Power 1 | . . 1 Propulsion . | . . . Utility 2 | . . 2 Weapon 2 | . . 2 Tool/Special 2 | . . 2 Average Slot Usage (%) 85 | . 92 76 Engine 6 | . 7 6 Treads 2 | . . 6 Leg 16 | . 28 1 Flight 2 | . . 6 Device 13 | . 13 14 Storage 14 | . 14 14 Energy Gun 6 | . 1 13 Energy Cannon 7 | . 12 . Ballistic Gun 13 | . 14 13 Peak Build Rating 14 | 5 7 14 Average Rating 7 | 4 6 9 On Entrance 3 | . 5 6 Naked Turns . | . . . Heaviest Build 15 | 8 15 14 Greatest Support 20 | 20 20 20 Greatest Overweight (x) 2 | . . 2 Average Overweight (x) . | . . . Largest Inventory Capacity 8 | 5 8 8 Average Capacity 7 | 5 8 8 Most Carried 8 | 5 7 8 Average Carried 5 | 2 3 7 Final Capacity 8 | 5 8 8 Final Carried 7 | 4 7 7 Class Distribution -------------------- 100% | Mutant Dominant Class ---------------- Mutant | -10/Materials Mutant | -10/Mines Resources | -11 -10 -10 ----------- Run | Yrd Mat Min Matter Collected 396 | 249 72 75 Remotely . | . . . Salvage Created 527 | 118 383 26 Parts 32 | 4 23 5 Haulers Intercepted . | . . . Recyclers Shooed 1 | . . 1 Parts Field Recycled . | . . . Retrieved Matter . | . . . Parts Self-Destructed . | . . . Prevented . | . . . Kills | -11 -10 -10 ------- Run | Yrd Mat Min Combat Hostiles Destroyed 10 | . 7 3 Guns 2 | . 1 1 Cannons 6 | . 6 . AOE 2 | . . 2 Classes Destroyed 5 | 2 2 1 Tunneler 1 | 1 . . Recycler 2 | 1 1 . Operator 1 | . 1 . Swarmer 3 | . . 3 Grunt 7 | . 7 . Best Kill Streak 4 | 1 4 3 Combat Bots Only 3 | . 2 3 Max Kills in Single Turn 2 | 1 1 2 Gunslinging . | . . . Exploded 2 | . . 2 Melee . | . . . Uniques/NPCs Destroyed . | . . . Combat | -11 -10 -10 -------- Run | Yrd Mat Min Hostile Shots Fired 85 | . 41 44 Missed 24 | . 11 13 Hits 61 | . 30 31 Projectile 61 | . 30 31 AOE 10 | . . 10 Critical Strikes 3 | . 3 . Damage Taken 912 | . 405 507 Core 270 | . 72 198 Absorbed by Shields . | . . . Core Remaining (%) 100 | 100 . . Volleys Fired 57 | 9 32 16 Largest 2 | 2 2 2 Hottest 80 | 70 80 80 Shots Fired 110 | 18 64 28 Gun 72 | 18 32 22 Cannon 37 | . 32 5 Launcher 1 | . . 1 Special . | . . . Kinetic 53 | 9 32 12 Thermal 56 | 9 32 15 Explosive 1 | . . 1 Electromagnetic . | . . . Robot Hit Streak 9 | 6 8 9 Robot Miss Streak 5 | 1 5 2 Penetration Max . | . . . Secondary Targets . | . . . Shots Hit Robots 66 | 12 37 17 Core Hits 25 | 3 16 6 Critical Kills . | . . . Critical Parts Destroyed . | . . . Critical Strikes 1 | . . 1 Burn 1 | . . 1 Melee Attacks . | . . . Impact . | . . . Slashing . | . . . Piercing . | . . . Sneak Attacks . | . . . Combat Hostiles . | . . . Follow-up Attacks . | . . . Damage Inflicted 918 | 125 482 311 Guns 442 | 125 148 169 Cannons 348 | . 330 18 Explosions 122 | . . 122 Melee . | . . . Ramming 6 | . 4 2 Kinetic 256 | 37 148 71 Thermal 534 | 88 330 116 Explosive 122 | . . 122 Electromagnetic . | . . . Impact . | . . . Slashing . | . . . Piercing . | . . . Highest Corruption . | . . . Average Corruption . | . . . Corruption Purged . | . . . Corruption Blocked . | . . . Overload Shots . | . . . Overflow Damage 21 | . . 21 Projectiles . | . . . Explosions 21 | . . 21 Melee . | . . . Knockbacks . | . . . Impact . | . . . Kinetic . | . . . Secondary . | . . . Self-Inflicted Damage 23 | . . 23 Shots 1 | . . 1 Rammed 1 | . . 1 Targets Rammed 2 | . 1 1 Kicked 1 | . 1 . Crushed . | . . . Highest Temperature 270 | 110 270 50 Average Temperature 75 | 45 98 21 Received Heat Transfer 285 | . 285 . Siege Activations . | . . . Martial Activations . | . . . Shielding Activations . | . . . Robots Disrupted . | . . . Combat Hostiles . | . . . Robots Corrupted . | . . . Combat Hostiles . | . . . Parts Fried . | . . . Impact Corruptions . | . . . Robots Melted . | . . . Combat Hostiles . | . . . Parts Melted . | . . . Heat Transferred 1369 | 259 703 407 Parts Sabotaged . | . . . Parts Stolen . | . . . Parts Stripped . | . . . Power Chain Reactions . | . . . Alert | -11 -10 -10 ------- Run | Yrd Mat Min Maximum Alert Level . | . . . Low Security (%) 100 | 100 100 100 Level 1 . | . . . Level 2 . | . . . Level 3 . | . . . Level 4 . | . . . Level 5 . | . . . High Security . | . . . Max Security . | . . . Peak Influence 67 | 5 66 67 Initial 3 | . . 3 Average 14 | . 19 11 Influence Increases 292 | 10 205 77 Destroy 0b10 Robot/C 200 | . 140 60 Destroy 0b10 Robot/NC 20 | 10 10 . Destroy Leader 50 | . 40 10 Disable Machine 15 | . 15 . Destroy Structure 7 | . . 7 Influence Decreases 292 | 10 195 87 Entered New Map 7 | . . 7 Time Decay 212 | 10 125 77 Lost Part 23 | . 20 3 Purge Threat 50 | . 50 . Squads Dispatched 1 | . 1 . Investigation . | . . . Extermination . | . . . Reinforcement 1 | . 1 . Assault . | . . . Garrison . | . . . Intercept . | . . . Searches Triggered . | . . . Construction Impeded . | . . . Haulers Reinforced . | . . . Active Scanning Responses . | . . . Cargo Convoy Interrupts . | . . . Stealth | -11 -10 -10 --------- Run | Yrd Mat Min Distress Signals 2 | . 2 . Communications Jammed . | . . . Distress Signals . | . . . Times Spotted 17 | . 13 4 Peak Tracking Total 4 | . 4 3 Tactical Retreats . | . . . Traps | -11 -10 -10 ------- Run | Yrd Mat Min Traps Triggered . | . . . Indirectly . | . . . Trap Hack Attempts . | . . . Triggered . | . . . Disarmed . | . . . Reprogrammed . | . . . Reused . | . . . Traps Extracted . | . . . Installed . | . . . Triggered . | . . . Machines | -11 -10 -10 ---------- Run | Yrd Mat Min Machines Disabled 1 | . 1 . Max in Single Turn 1 | . 1 . Machines Repaired . | . . . Machines Dismantled . | . . . Machines Sabotaged . | . . . Overloaded Fab Kills . | . . . Hacking | -11 -10 -10 --------- Run | Yrd Mat Min Machines Accessed 5 | . 5 . Terminals 5 | . 5 . Fabricators . | . . . Repair Stations . | . . . Recycling Units . | . . . Scanalyzers . | . . . Garrison Access . | . . . Total Hacks 14 | . 14 . Successful 2 | . 2 . Failed 12 | . 12 . Catastrophic 1 | . 1 . Database Lockouts . | . . . Manual 14 | . 14 . Terminals 14 | . 14 . Fabricators . | . . . Repair Stations . | . . . Recycling Units . | . . . Scanalyzers . | . . . Garrison Access . | . . . Terminal Hacks 1 | . 1 . Unreport Threat 1 | . 1 . Fabricator Hacks . | . . . Repair Station Hacks . | . . . Recycling Unit Hacks . | . . . Scanalyzer . | . . . Garrison Access Hacks . | . . . Unauthorized Hacks 1 | . 1 . Terminals 1 | . 1 . Botnet 1 | . 1 . Fabricators . | . . . Repair Stations . | . . . Recycling Units . | . . . Scanalyzers . | . . . Garrison Access . | . . . Data Cores Recovered 1 | . 1 . Used . | . . . Hacking Detections 5 | . 5 . Full Trace Events . | . . . Feedback Events . | . . . Feedback Blocked . | . . . Robot Schematics Acquired . | . . . Robots Built . | . . . Authchips . | . . . Time . | . . . Total Robot Build Rating . | . . . Part Schematics Acquired . | . . . Parts Built . | . . . Authchips . | . . . Time . | . . . Total Part Build Rating . | . . . Parts Repaired . | . . . Time . | . . . Parts Recycled . | . . . Recycled Matter . | . . . Retrieved Matter . | . . . Retrieved Components . | . . . Parts Scanalyzed . | . . . Part Schematics Acquired . | . . . Parts Damaged . | . . . Bothacking | -11 -10 -10 ------------ Run | Yrd Mat Min Used RIF Installer . | . . . Robots Hacked . | . . . Non-combat . | . . . Combat . | . . . Robot Hacks Applied . | . . . Relay Couplers Released . | . . . Fabnet Peak Effective % . | . . . Robots Rewired . | . . . Allies Hacked . | . . . Hacks Repelled . | . . . Allies | -11 -10 -10 -------- Run | Yrd Mat Min Total Allies 3 | . . 3 Largest Group 1 | . . 1 Highest-Rated Group 16 | . . 16 Highest-Rated Ally 16 | . . 16 Total Orders . | . . . Ally Attacks 1 | . . 1 Total Damage 16 | . . 16 Kills . | . . . Allies Corrupted . | . . . Allies Melted . | . . . Intel | -11 -10 -10 ------- Run | Yrd Mat Min Active Infowar (turns) 933 | . 588 345 Sensors 219 | . . 219 Seismic 714 | . 588 126 Robot Analysis Total . | . . . Derelict Logs Recovered 1 | . . 1 Drone Launches . | . . . Drone Recoveries . | . . . Exploration | -11 -10 -10 ------------- Run | Yrd Mat Min Turns Passed 1150 | 113 589 448 Spaces Moved 661 | 75 365 221 Core 30 | 28 . 2 Treads 112 | . . 112 Legs 423 | 47 365 11 Wheels . | . . . Hover . | . . . Flight 96 | . . 96 Fastest Speed 50 | 50 120 120 Average Speed 135 | 93 120 175 Slowest Speed 200 | 120 120 200 Overloaded Moves . | . . . Propulsion Burnouts . | . . . Robots Hopped . | . . . Potential Cave-ins . | . . . Cave-ins Triggered . | . . . Exploration Rate (%) 39 | 4 63 51 Regions Visited 2 Branch Regions 1 Pre-discovered Areas 1 | . . 1 Known Exits Taken . | . . . Unknown Exits Taken 2 | 1 1 . Scrap Searched 2 | . . 2 Spaces Dug . | . . . Terrain Destroyed 7 | . . 7 Melee . | . . . Projectile . | . . . AOE 7 | . . 7 Terrain Rammed . | . . . Walls Destroyed . | . . . Machines Disabled . | . . . Actions | -11 -10 -10 --------- Run | Yrd Mat Min Total 816 | 101 457 258 Wait 55 | 4 50 1 Move 659 | 74 364 221 Hop . | . . . Pick Up 22 | 9 6 7 Fast Attach . | . . . Attach 13 | 5 3 5 Detach 1 | . . 1 Swap 3 | . 1 2 Drop 4 | . . 4 Fire 57 | 9 32 16 Melee . | . . . Ram 1 | . . 1 Kick 1 | . 1 . Crush . | . . . Escape Stasis . | . . . Rewire . | . . . Trap . | . . . Miscellaneous . | . . . Route ------- -11/Scrapyard -10/Materials (discovered 3 exits: [*Mat x2] / [*Min]) -10/Mines (discovered 2 exits: [*Mat] / [*Sub]) History --------- Turn | Location | Event 12 | -11/Scrapyard | Discovered new exit (range 16) 114 | -11/Scrapyard | Entered Materials 313 | -10/Materials | Build established: Mutant 318 | -10/Materials | Discovered new exit (range 13) 380 | -10/Materials | Discovered new exit (range 10) 596 | -10/Materials | Discovered new exit (range 15) 703 | -10/Materials | Entered Mines 724 | -10/Mines | Core integrity fell below 50% 773 | -10/Mines | Discovered new exit (range 5) 869 | -10/Mines | Discovered new exit (range 11) 927 | -10/Mines | Found a damaged Exp. Sensor Array with a note attached 931 | -10/Mines | Found Prototype Device 932 | -10/Mines | Identified Exp. Sensor Array 1042 | -10/Mines | Learned location of Storage (-9) 1142 | -10/Mines | Assisted by bots powering up and referring to "LRC-V3" 1148 | -10/Mines | Core integrity fell below 20% 1151 | -10/Mines | Destroyed by YI-UF0 with YI-UF0's Doublenader Last Messages --------------- 01138_ The unstable cave ceiling collapses. 01139_ K-01 Serf collects debris. 01142_ The unstable cave ceiling collapses. 01142_ Trooper 1a: "Hello LRC-V3. What is your command?" 01142_ Mercenary 1a: "Hello LRC-V3. What is your command?" 01142_ Trooper 1b: "Hello LRC-V3. What is your command?" 01144_ YI-UF0: "KAPOW!" 01144_ Mercenary 1a destroyed. 01144_ Trooper 1b destroyed. 01145_ K-01 Serf collects debris. 01147_ The unstable cave ceiling collapses. 01147_ Trooper 1a destroyed. 01148_ The unstable cave ceiling collapses. 01148_ K-01 Serf crushed by falling debris. 01148_ K-01 Serf destroyed. 01148_ Wheel crushed. 01151_ The unstable cave ceiling collapses. Map ----- +----------------------------------------------------+ | | | | | | | | | | | ??????????????????????????????????????? | | ??????????????????????????????????????? | | ??????????????????????????????????????? | | ??????????????????????????????????????? | | ??????????????????????????????????????? | | ?????????????#?? ?????????????????????? | | ?????????????? ?????????????????????? | | ?????????????? ?????????????????????? | | ?????????????? ?????????????????????? | | ?????????????? ?????????????????????? | | ??????????????# #?????????????????????? | | ??????????????# #???????#?????????????? | | ??????????????# #?????? #?????????????? | | ??????????????? ###### #?????????????? | | ?????????????## #?????????????? | | ??????????#### ## #??# ?#??????? | | ?????????## # ### ??????? | | ?????????# [ ?????? | | ?????????# ?????? | | ?????????# = % g ?????? | | ?????????# @ # # ?????? | | ?????????# # ?????? | | ?????????## # # ??????? | | ??????????# #? #????????? | | ??????????### # ##??#######????????? | | ????????????## #?????????????????? | | ??????????##### ## #?????????????????? | | ??????????# %! ## ##????????????????? | | ??????????# ### ##???????????????? | | ??????????# ### ######??????????? | | ????????### ## ##?????????? | | ???????## #?????????? | | ???????# ###?????????? | | ???????# ### ####???????????? | | ???????# ##?## ##??????????????? | | ???????# ##???# ? #???????????????? | | ???????# #???## #???????????????? | | ???????# #??## ##???????????????? | | ???????# #??# ###????????????????? | | ???????# #??# ##??????????????????? | | ??????## #??# #???????????????????? | | ?????## #??# #???????????????????? | | ?????# ##??# #????????? #???????? | | ?????# ##??# #???????? #??????? | | ?????## #??## ##??????? ??????? | +----------------------------------------------------+ Best States ------------- Heat Dissipation 25 Energy Generation 10 Energy Capacity 250 Matter Stores 300 Matter Capacity 300 Sight Range 16 Robot Scan Range 20 Terrain Scan Density 10 Evasion (%) 55 Recoil Reduction 1 Item Schematics ----------------- None Robot Schematics ------------------ None Fabricated ------------ Nothing Repaired ---------- Nothing Alien Tech Used ----------------- None Achievements -------------- None Challenges ------------ None Game ------ Seed MetafieldMetafiberBroadsword Manual? 0 Play Time 00:09:38 Cumulative 18.8 hours Start 2025.10.12 @ 10:56:58 End 2025.10.12 @ 11:04:08 Sessions 1 Manual Loads 0 Difficulty Rogue Special Mode None Game No. 55 Rogue 55 Adventurer 0 Explorer 0 Win Type - Total 0 Types 0/0/0/0/0/0/0/0/0/0 Lore% 31 Gallery% 26 Achievement% 28 Wizard Run 0 Options --------- Layout 1 ASCII 0 Keyboard 0 Movement Numpad Keybinds 0 Fullscreen 1 Font 24/Smallcaps Map View 50x35 Zoom Use 0% Tactical HUD 1 Map Filters NONE Filters NONE Steam 1 RUN: 538c5b86-9b48-49bf-ab93-96a4b4acb1cb